bitfinex/quotes_BTCUSD_20250412
["timestamp","ask_amount","ask_price","bid_price","bid_amount"]
[1744490875216,0.91222854,85621.0,85620.0,0.001001]
[1744490875795,0.86282854,85621.0,85620.0,0.001001]
[1744490876252,0.85786854,85621.0,85620.0,0.001001]
[1744490876640,0.85286854,85621.0,85620.0,1e-06]
[1744490876839,0.85886854,85621.0,85620.0,0.001001]
[1744490877191,0.01,85621.0,85620.0,0.234591]
[1744490877386,0.16444,85621.0,85620.0,0.001001]
[1744490877844,0.398027,85621.0,85620.0,0.001001]
[1744490878145,0.392027,85621.0,85620.0,1e-06]
[1744490878355,0.004,85621.0,85620.0,0.234591]
[1744490878725,0.004,85621.0,85620.0,0.23907453]
[1744490879036,0.007,85621.0,85620.0,0.23907453]
[1744490879639,0.004,85621.0,85620.0,0.23907453]
[1744490879988,0.011677,85632.0,85628.0,0.011678]
[1744490880487,0.011677,85632.0,85629.0,0.00447471]
[1744490881669,0.011677,85632.0,85629.0,0.00547471]
[1744490881888,0.245236,85632.0,85629.0,0.00547471]
[1744490883103,0.233562,85631.0,85629.0,0.00547471]
[1744490883432,0.233562,85631.0,85629.0,0.001]
[1744490883645,0.011677,85632.0,85629.0,0.001]
[1744490883852,0.245235,85632.0,85629.0,0.001]
[1744490884201,0.011677,85632.0,85627.0,0.245246]
[1744490884337,0.011677,85632.0,85629.0,0.001]
[1744490884538,0.0121423,85633.0,85629.0,0.011678]
[1744490884738,0.0121423,85633.0,85630.0,0.00447765]
[1744490884739,0.2456993,85633.0,85630.0,0.00447765]
[1744490885176,0.011677,85632.0,85629.0,0.001]
[1744490885428,0.011677,85632.0,85631.0,0.00448942]
[1744490885607,0.011677,85632.0,85630.0,0.00448648]
[1744490885850,0.0004653,85633.0,85631.0,0.23803959]
[1744490887184,0.0004653,85633.0,85631.0,0.23903959]
[1744490890020,0.0004653,85633.0,85631.0,0.234559]
[1744490891213,0.12084154,85632.0,85631.0,0.001]
[1744490891452,0.69439854,85632.0,85631.0,0.001]
[1744490892470,0.233587,85621.0,85620.0,1e-06]
[1744490893404,0.387987,85622.0,85620.0,1e-06]
[1744490894365,0.001,85621.0,85620.0,1e-06]
[1744490895595,0.387987,85622.0,85620.0,1e-06]
[1744490895796,0.387987,85622.0,85620.0,0.001001]
[1744490895797,0.12084154,85621.0,85620.0,0.001001]
[1744490896320,0.12084154,85621.0,85620.0,1e-06]
[1744490896512,0.12084154,85621.0,85620.0,0.001001]
[1744490896671,0.12084154,85621.0,85620.0,1e-06]
[1744490896872,0.12084154,85621.0,85620.0,0.001001]
[1744490897084,0.12284154,85621.0,85620.0,0.001001]
[1744490897910,0.12384154,85621.0,85620.0,0.001001]
[1744490899207,0.13259764,85621.0,85620.0,0.001001]
[1744490899594,0.003,85621.0,85620.0,0.001001]
[1744490900092,0.15612,85621.0,85620.0,0.001001]
[1744490901583,0.28588755,85621.0,85620.0,0.001001]
[1744490901917,2.00982945,85621.0,85620.0,0.001001]
[1744490902073,1.92180755,85621.0,85620.0,0.001001]
[1744490902624,2.88693555,85621.0,85620.0,0.001001]
[1744490902799,2.88493555,85621.0,85620.0,1e-06]
[1744490902956,2.84325055,85621.0,85620.0,0.001001]
[1744490903162,2.25441155,85621.0,85620.0,0.001001]
[1744490903657,1.92580755,85621.0,85620.0,0.001001]
[1744490903865,1.92980755,85621.0,85620.0,0.001001]
[1744490904704,2.83592955,85621.0,85620.0,0.001001]
[1744490905160,0.01454085,85620.0,85616.0,1e-06]
[1744490905307,0.573598,85617.0,85616.0,1e-06]
[1744490905475,0.69443954,85617.0,85616.0,1e-06]
[1744490906299,0.70533837,85617.0,85616.0,1e-06]
[1744490906777,0.71033837,85617.0,85616.0,1e-06]
[1744490906984,0.71033837,85617.0,85585.0,0.0008468]
[1744490906985,0.667858,85595.0,85585.0,0.0008468]
[1744490907229,0.94185954,85595.0,85585.0,0.0008468]
[1744490907434,0.95275837,85595.0,85585.0,0.0008468]
[1744490907790,0.9615953,85595.0,85585.0,0.0008468]
[1744490908056,0.9615953,85595.0,85594.0,0.0028472]
[1744490908344,0.9732313,85595.0,85594.0,0.0028472]
[1744490908493,0.9732313,85595.0,85594.0,0.0008472]
[1744490909095,0.8850313,85595.0,85594.0,0.0008472]
[1744490909416,0.8880313,85595.0,85594.0,0.0008472]
[1744490909609,0.8930313,85595.0,85594.0,0.0008472]
[1744490910618,0.87302338,85595.0,85594.0,0.0008472]
[1744490911033,0.87302338,85595.0,85594.0,0.0006496]
[1744490911555,0.86212455,85595.0,85594.0,0.0006496]
[1744490912989,0.52212455,85595.0,85594.0,0.0006496]
[1744490913369,0.40128301,85595.0,85594.0,0.0006496]
[1744490914220,0.40128301,85595.0,85594.0,0.00032032]
[1744490916212,0.16762501,85595.0,85594.0,0.00032032]
[1744490916654,0.16762501,85595.0,85594.0,0.004795]
[1744490916982,0.16762501,85595.0,85594.0,0.00479795]
[1744490917157,0.16462501,85595.0,85594.0,0.00479795]
[1744490917503,0.16462501,85595.0,85594.0,0.00579795]
[1744490917742,0.16462501,85595.0,85594.0,0.00132032]
[1744490918040,0.16462501,85595.0,85594.0,0.00032032]
[1744490918247,0.16462501,85595.0,85594.0,0.00132032]
[1744490918567,0.15362501,85595.0,85594.0,0.00132032]
[1744490918854,0.15462501,85595.0,85594.0,0.00132032]
[1744490919060,0.15462501,85595.0,85594.0,0.00032032]
[1744490920337,0.16551951,85595.0,85594.0,0.00032032]
[1744490920540,0.62636105,85595.0,85594.0,0.00032032]
[1744490920740,0.67246105,85595.0,85594.0,0.00032032]
[1744490921312,0.67346105,85595.0,85594.0,0.00032032]
[1744490922026,0.67246105,85595.0,85594.0,0.00032032]
[1744490922225,0.67546105,85595.0,85594.0,0.00032032]
[1744490925274,0.67546105,85595.0,85589.0,0.0008472]
[1744490925275,0.573672,85590.0,85589.0,5.2e-07]
[1744490925486,0.233683,85586.0,85585.0,3.2e-07]
[1744490925697,0.35452454,85586.0,85585.0,3.2e-07]
[1744490926648,0.40042454,85586.0,85585.0,3.2e-07]
[1744490926803,0.40642454,85586.0,85585.0,3.2e-07]
[1744490928136,0.40042454,85586.0,85585.0,3.2e-07]
[1744490928386,0.41042454,85586.0,85585.0,3.2e-07]
[1744490930454,0.36452454,85586.0,85585.0,3.2e-07]
[1744490933507,0.52032454,85586.0,85585.0,3.2e-07]
[1744490939281,0.36452454,85586.0,85585.0,3.2e-07]
[1744490939455,0.01,85586.0,85585.0,0.23368532]
[1744490939976,0.01,85586.0,85585.0,0.23825425]
[1744490940376,0.006,85586.0,85585.0,0.23825425]
[1744490940580,0.007,85586.0,85585.0,0.23825425]
[1744490941145,0.006,85586.0,85585.0,0.23825425]
[1744490941381,0.006,85586.0,85585.0,0.24025425]
[1744490941924,0.167483,85591.0,85588.0,0.011683]
[1744490942253,0.167483,85591.0,85589.0,0.00463079]
[1744490943294,0.168483,85591.0,85589.0,0.00463079]
[1744490943547,0.35451354,85590.0,85589.0,0.00463079]
[1744490943667,0.69451354,85590.0,85589.0,0.00463079]
[1744490943866,1.39591354,85590.0,85589.0,0.002]
[1744490944092,0.573672,85590.0,85589.0,0.003]
[1744490944651,0.729472,85590.0,85589.0,0.002]
[1744490944970,0.233683,85586.0,85585.0,3.2e-07]
[1744490946398,0.233683,85586.0,85585.0,0.00100032]
[1744490946600,0.001,85590.0,85587.0,0.245364]
[1744490946803,0.1558,85589.0,85588.0,0.233677]
[1744490947105,0.1558,85589.0,85588.0,0.00459128]
[1744490947652,0.167483,85589.0,85588.0,0.00459717]
[1744490947803,0.1558,85589.0,85586.0,0.245364]
[1744490948006,0.1568,85589.0,85588.0,0.00459128]
[1744490948209,0.1568,85589.0,85587.0,0.00458833]
[1744490948529,0.1568,85589.0,85588.0,0.00459128]
[1744490948931,0.1578,85589.0,85588.0,0.00459128]
[1744490949327,0.001,85589.0,85588.0,0.00459128]
[1744490949528,0.002,85589.0,85587.0,0.233677]
[1744490949734,0.00046501,85595.0,85594.0,0.233661]
[1744490950130,0.00046501,85595.0,85594.0,0.23816255]
[1744490950353,0.00046501,85595.0,85594.0,0.00450155]
[1744490950580,0.00046501,85595.0,85592.0,0.011683]
[1744490950753,0.00046501,85595.0,85594.0,0.00451039]
[1744490951098,0.00046501,85595.0,85593.0,0.233662]
[1744490951371,0.00046501,85595.0,85594.0,0.00551039]
[1744490952382,0.00146501,85595.0,85594.0,0.00551039]
[1744490953747,0.00146501,85595.0,85594.0,0.00651039]
[1744490953975,0.00146501,85595.0,85594.0,0.00616767]
[1744490956313,0.00146501,85595.0,85594.0,0.002]
[1744490956513,0.00146501,85595.0,85594.0,0.24009202]
[1744490956715,0.00146501,85595.0,85594.0,0.235661]
[1744490956917,0.00146501,85595.0,85594.0,0.24009202]
[1744490961371,0.00146501,85595.0,85594.0,0.28529202]
[1744490962178,0.00146501,85595.0,85594.0,0.28429202]
[1744490962686,0.00046501,85595.0,85594.0,0.28529202]
[1744490963112,0.00146501,85595.0,85594.0,0.28729202]
[1744490965103,0.00146501,85595.0,85594.0,0.40813356]
[1744490965692,0.00146501,85595.0,85594.0,0.40370254]
[1744490966216,0.00146501,85595.0,85594.0,0.41100151]
[1744490966393,0.00146501,85595.0,85594.0,0.42554236]
[1744490966590,0.00146501,85595.0,85594.0,0.47174236]
[1744490967186,0.00146501,85595.0,85594.0,0.46444339]
[1744490967391,0.15072,85620.0,85618.0,0.233594]
[1744490967787,0.15072,85620.0,85617.0,0.011679]
[1744490968765,0.15072,85620.0,85618.0,0.001]
[1744490969161,0.15072,85620.0,85617.0,0.011679]
[1744490969376,0.15072,85620.0,85617.0,0.016679]
[1744490969576,0.15172,85620.0,85617.0,0.016679]
[1744490969776,0.15072,85620.0,85617.0,0.013679]
[1744490970302,0.162399,85620.0,85617.0,0.002]
[1744490970506,0.011679,85619.0,85614.0,0.01168]
[1744490970822,0.011679,85617.0,85614.0,0.01168]
[1744490971708,0.011679,85617.0,85614.0,0.01768]
[1744490971910,0.011679,85617.0,85614.0,0.01368]
[1744490972259,0.011679,85617.0,85614.0,0.01568]
[1744490972559,0.012679,85617.0,85614.0,0.01768]
[1744490972765,0.012679,85617.0,85614.0,0.01733728]
[1744490973608,0.012679,85617.0,85614.0,0.006]
[1744490974835,0.001,85617.0,85615.0,0.233603]
[1744490976002,0.001,85617.0,85615.0,0.235603]
[1744490976205,0.000424,85621.0,85620.0,0.23359]
[1744490977428,0.000424,85621.0,85620.0,0.23472855]
[1744490977984,0.000424,85621.0,85620.0,0.00313855]
[1744490978161,0.000424,85621.0,85620.0,0.23672855]
[1744490986260,0.000424,85621.0,85620.0,0.23906421]
[1744490986423,0.000424,85621.0,85620.0,0.35757009]
[1744490986885,0.000424,85621.0,85620.0,0.36386634]
[1744490987184,0.000424,85621.0,85620.0,0.36686634]
[1744490987403,0.000424,85621.0,85620.0,0.36486634]
[1744490987797,0.000424,85621.0,85620.0,0.36186634]
[1744490988182,0.001424,85621.0,85620.0,0.36886634]
[1744490989888,0.001424,85621.0,85620.0,0.38007595]
[1744490990767,0.001424,85621.0,85620.0,0.36886634]
[1744490993065,0.001424,85621.0,85620.0,0.02607938]
[1744490993211,0.001424,85621.0,85620.0,0.0144348]
[1744490993611,0.001424,85621.0,85620.0,0.00713855]
[1744490996269,0.17066554,85621.0,85620.0,0.00713855]
[1744490997058,0.17066554,85621.0,85620.0,0.00413855]
[1744490997474,0.16966554,85621.0,85620.0,0.00013855]
[1744490997882,0.17366554,85621.0,85620.0,0.00113855]
[1744490998508,0.52233458,85621.0,85620.0,0.00113855]
[1744491000216,0.56853458,85621.0,85620.0,0.00113855]
[1744491000432,1.36302458,85621.0,85620.0,0.00113855]
[1744491000755,1.36302458,85621.0,85585.0,3.2e-07]
[1744491000756,0.233681,85587.0,85585.0,3.2e-07]
[1744491000941,0.233681,85587.0,85585.0,0.00046533]
[1744491000942,0.12084154,85586.0,85585.0,0.00046533]
[1744491001363,0.92789774,85586.0,85585.0,0.00046533]
[1744491001550,0.97409774,85586.0,85585.0,0.00046533]
[1744491001791,0.83684774,85586.0,85585.0,0.00046533]
[1744491002175,0.69308374,85586.0,85585.0,0.00046533]
[1744491002661,0.68285074,85586.0,85585.0,0.00046533]
[1744491003163,0.68585074,85586.0,85585.0,0.00046533]
[1744491003506,0.69185074,85586.0,85585.0,0.00146533]
[1744491003706,0.69185074,85586.0,85585.0,0.00111813]
[1744491005733,0.68467974,85586.0,85585.0,0.00111813]
[1744491005932,0.69351255,85586.0,85585.0,0.00111813]
[1744491006959,0.58488255,85586.0,85585.0,0.00111813]
[1744491007199,0.77013555,85586.0,85585.0,0.00111813]
[1744491007401,0.90540488,85586.0,85585.0,0.00111813]
[1744491008802,0.7846764,85586.0,85585.0,0.00111813]
[1744491010535,0.63623485,85582.0,85581.0,1.3e-07]
[1744491010728,0.75707639,85582.0,85581.0,1.3e-07]
[1744491012420,0.68823985,85580.0,85579.0,3.3e-07]
[1744491012619,0.68135585,85574.0,85573.0,5.3e-07]
[1744491012819,0.68135585,85574.0,85569.0,7.3e-07]
[1744491012820,0.63626685,85570.0,85569.0,7.3e-07]
[1744491013030,0.90686839,85570.0,85569.0,7.3e-07]
[1744491013691,0.95196839,85570.0,85569.0,7.3e-07]
[1744491014403,1.08069687,85570.0,85569.0,7.3e-07]
[1744491014608,0.99285673,85570.0,85569.0,7.3e-07]
[1744491014770,0.68139485,85560.0,85559.0,3.3e-07]
[1744491015091,0.80223639,85560.0,85559.0,3.3e-07]
[1744491016066,0.80570119,85560.0,85559.0,3.3e-07]
[1744491016261,0.81270119,85560.0,85559.0,3.3e-07]
[1744491016465,1.22056149,85560.0,85559.0,3.3e-07]
[1744491017554,1.17256149,85560.0,85559.0,3.3e-07]
[1744491019718,0.75906149,85560.0,85559.0,3.3e-07]
[1744491022327,0.91170149,85560.0,85559.0,3.3e-07]
[1744491022524,0.91108925,85560.0,85559.0,3.3e-07]
[1744491025956,1.09435858,85560.0,85559.0,3.3e-07]
[1744491027804,0.9736301,85560.0,85559.0,3.3e-07]
[1744491028381,0.9736701,85560.0,85559.0,3.3e-07]
[1744491029390,0.8209901,85560.0,85559.0,3.3e-07]
[1744491029594,0.9736701,85560.0,85559.0,3.3e-07]
[1744491030012,0.58831585,85552.0,85551.0,0.00167777]
[1744491030333,1.14177539,85552.0,85551.0,0.00167777]
[1744491030556,1.05875539,85552.0,85551.0,0.00167777]
[1744491030699,0.96750439,85552.0,85551.0,0.00167777]
[1744491031338,0.96850439,85552.0,85551.0,0.00167777]
[1744491032343,0.96850439,85552.0,85531.0,8e-05]
[1744491032344,0.58832685,85548.0,85547.0,3.7e-07]
[1744491032641,0.70916839,85548.0,85547.0,3.7e-07]
[1744491033746,0.71316839,85548.0,85547.0,3.7e-07]
[1744491034872,0.86584839,85548.0,85547.0,3.7e-07]
[1744491035018,0.87384839,85548.0,85547.0,3.7e-07]
[1744491036577,0.85930754,85548.0,85547.0,3.7e-07]
[1744491038693,0.85930754,85548.0,85543.0,0.00054741]
[1744491038694,0.58833785,85544.0,85543.0,0.00054741]
[1744491038868,0.75717939,85544.0,85543.0,0.00054741]
[1744491039054,0.70917939,85544.0,85543.0,0.00054741]
[1744491039656,0.69463854,85544.0,85543.0,0.00054741]
[1744491040056,0.70063854,85544.0,85543.0,0.00054741]
[1744491040253,0.70363854,85544.0,85543.0,0.00054741]
[1744491041899,0.71531766,85544.0,85543.0,0.00054741]
[1744491042478,1.91883766,85544.0,85543.0,0.00054741]
[1744491044522,2.42342466,85544.0,85543.0,0.00054741]
[1744491045925,2.34981166,85544.0,85543.0,0.00054741]
[1744491046204,2.23942166,85544.0,85543.0,0.00054741]
[1744491048775,2.23942166,85544.0,85543.0,4.1e-07]
[1744491048978,1.91883766,85544.0,85543.0,4.1e-07]
[1744491049943,1.93337851,85544.0,85543.0,4.1e-07]
[1744491050142,2.05804146,85544.0,85543.0,4.1e-07]
[1744491050366,1.98307851,85544.0,85543.0,4.1e-07]
[1744491053727,0.011694,85511.0,85489.0,0.34]
[1744491053926,0.011694,85511.0,85502.0,0.011695]
[1744491054240,0.011694,85510.0,85504.0,0.011695]
[1744491054452,0.011694,85509.0,85505.0,0.01272055]
[1744491055027,0.01215823,85509.0,85505.0,0.01272055]
[1744491055584,0.00046423,85509.0,85505.0,0.01272055]
[1744491055730,0.01315823,85509.0,85505.0,0.01272055]
[1744491056181,0.01415823,85509.0,85505.0,0.01472055]
[1744491056771,0.00246423,85509.0,85506.0,0.060995]
[1744491057185,0.00246423,85509.0,85507.0,0.01271751]
[1744491057944,0.00046423,85509.0,85507.0,0.01271751]
[1744491058360,0.00246423,85509.0,85507.0,0.01271751]
[1744491058914,0.00146423,85509.0,85507.0,0.01271751]
[1744491059121,0.00246423,85509.0,85507.0,0.01471751]
[1744491064650,0.233896,85508.0,85507.0,0.01471751]
[1744491064817,0.233896,85508.0,85507.0,0.002]
[1744491065033,0.00246423,85509.0,85507.0,0.235896]
[1744491065366,0.00246423,85509.0,85508.0,0.06591418]
[1744491065509,0.00046423,85509.0,85508.0,0.06357537]
[1744491066528,0.00146423,85509.0,85508.0,0.06357537]
[1744491068593,0.00246423,85509.0,85508.0,0.06557537]
[1744491077305,0.00246423,85509.0,85508.0,0.01657537]
[1744491078010,0.00246423,85509.0,85508.0,0.01891409]
[1744491078370,0.00246423,85509.0,85508.0,0.01657537]
[1744491083425,0.00146423,85509.0,85508.0,0.01657537]
[1744491083625,0.00046423,85509.0,85508.0,0.01457537]
[1744491083940,0.00046423,85509.0,85508.0,0.01657537]
[1744491084445,0.00146423,85509.0,85508.0,0.01457537]
[1744491084653,0.00146423,85509.0,85508.0,0.01691408]
[1744491084794,0.00146423,85509.0,85508.0,0.01891408]
[1744491084997,0.00046423,85509.0,85508.0,0.01891406]
[1744491085401,0.00146423,85509.0,85508.0,0.1397556]
[1744491086647,0.233847,85526.0,85519.0,0.01136174]
[1744491086847,0.23398623,85526.0,85520.0,0.01458573]
[1744491087245,0.233852,85525.0,85520.0,0.01458573]
[1744491087631,0.011692,85523.0,85520.0,0.01458573]
[1744491088275,0.233857,85522.0,85520.0,0.01458573]
[1744491088600,0.011693,85515.0,85512.0,0.011694]
[1744491088719,0.011693,85515.0,85511.0,0.011694]
[1744491088720,0.011693,85514.0,85511.0,0.011694]
[1744491088920,0.011693,85514.0,85513.0,0.01453501]
[1744491089120,0.011693,85514.0,85512.0,0.01453197]
[1744491089322,0.011693,85515.0,85513.0,0.01454412]
[1744491090385,0.233879,85514.0,85513.0,0.01454412]
[1744491090745,0.011694,85513.0,85509.0,0.011694]
[1744491090946,0.245579,85513.0,85511.0,0.001]
[1744491091157,0.245579,85513.0,85508.0,0.141694]
[1744491091158,0.011694,85512.0,85508.0,0.141694]
[1744491091809,0.011694,85513.0,85509.0,0.245587]
[1744491091998,0.001,85514.0,85511.0,0.011694]
[1744491092174,0.001,85513.0,85511.0,0.012694]
[1744491092593,0.001,85512.0,85511.0,0.012694]
[1744491092960,0.011693,85514.0,85511.0,0.011694]
[1744491093366,0.233866,85520.0,85512.0,0.011694]
[1744491093605,0.011693,85519.0,85512.0,0.011694]
[1744491093803,0.245561,85519.0,85513.0,0.245574]
[1744491094424,0.011693,85517.0,85513.0,0.245574]
[1744491094599,0.001,85514.0,85513.0,0.245574]
[1744491094798,0.011693,85516.0,85513.0,0.245574]
[1744491095001,0.011693,85516.0,85513.0,0.24523352]
[1744491095702,0.001,85514.0,85513.0,0.24523352]
[1744491096470,0.011693,85516.0,85513.0,0.24523352]
[1744491096752,0.011693,85517.0,85514.0,0.011693]
[1744491096972,0.011693,85518.0,85515.0,0.011693]
[1744491097533,0.245562,85518.0,85515.0,0.011693]
[1744491097916,0.001,85516.0,85515.0,0.011693]
[1744491098123,0.245562,85518.0,85515.0,0.013693]
[1744491098325,0.246562,85518.0,85515.0,0.013693]
[1744491098763,0.246562,85518.0,85515.0,0.002]
[1744491098964,0.281274,85516.0,85515.0,0.002]
[1744491099554,0.281274,85516.0,85515.0,0.01459173]
[1744491099872,0.292967,85516.0,85515.0,0.01659173]
[1744491101052,0.001,85516.0,85515.0,0.01659173]
[1744491101252,0.001,85516.0,85515.0,0.25046873]
[1744491104320,0.001,85516.0,85515.0,0.25012825]
[1744491121844,0.001,85516.0,85515.0,0.37096979]
[1744491122203,0.001,85516.0,85515.0,0.40338467]
[1744491122616,0.001,85516.0,85515.0,0.40172515]
[1744491123175,0.001,85516.0,85515.0,0.40372515]
[1744491124310,0.00013923,85526.0,85525.0,0.233849]
[1744491124536,0.00013923,85526.0,85525.0,0.25124532]
[1744491124857,0.00013923,85526.0,85525.0,0.24890709]
[1744491125633,0.00113923,85526.0,85525.0,0.25490709]
[1744491132330,0.00113923,85526.0,85525.0,0.37574863]
[1744491132537,2.3e-07,85526.0,85525.0,0.77718948]
[1744491132736,2.3e-07,85526.0,85525.0,0.80953746]
[1744491132980,2.3e-07,85526.0,85525.0,1.00821746]
[1744491133767,2.3e-07,85526.0,85525.0,1.00521746]
[1744491134089,0.00100023,85526.0,85525.0,1.01021746]
[1744491134395,0.0004238,85544.0,85541.0,0.01169]
[1744491134568,0.0004238,85544.0,85543.0,0.2338]
[1744491134768,0.0004238,85544.0,85543.0,0.35464154]
[1744491134988,0.0004238,85544.0,85543.0,0.24863646]
[1744491135627,0.0004238,85544.0,85543.0,0.25263646]
[1744491135798,0.0014238,85544.0,85543.0,0.25563646]
[1744491136114,0.0014238,85544.0,85543.0,0.25163646]
[1744491136321,0.0024238,85544.0,85543.0,0.25663646]
[1744491136895,0.0024238,85544.0,85543.0,0.25363646]
[1744491137886,0.0024238,85544.0,85543.0,0.25663646]
[1744491138999,0.0024238,85544.0,85543.0,0.02283646]
[1744491139226,0.0482238,85544.0,85543.0,0.02283646]
[1744491139425,0.21676534,85544.0,85543.0,0.02283646]
[1744491139637,0.327347,85526.0,85525.0,0.00042417]
[1744491140202,0.44818854,85526.0,85525.0,0.00042417]
[1744491140374,0.0458,85526.0,85525.0,0.00042417]
[1744491140950,0.0488,85526.0,85525.0,0.00042417]
[1744491141157,0.0488,85526.0,85525.0,0.01533167]
[1744491141355,0.0488,85526.0,85525.0,0.00042417]
[1744491141566,0.0458,85526.0,85525.0,0.01533167]
[1744491141750,0.0458,85526.0,85525.0,0.00042417]
[1744491141950,0.0458,85526.0,85525.0,0.01733167]
[1744491143576,0.0919,85526.0,85525.0,0.01733167]
[1744491143762,0.0919,85526.0,85525.0,0.00242417]
[1744491144407,0.0919,85526.0,85525.0,0.00142417]
[1744491144723,0.0929,85526.0,85525.0,0.00042417]
[1744491144921,0.0929,85526.0,85525.0,0.00142417]
[1744491145145,0.0969,85526.0,85525.0,0.00142417]
[1744491146385,0.24618,85526.0,85525.0,0.00142417]
[1744491152411,0.0969,85526.0,85525.0,0.0169055]
[1744491152782,0.0969,85526.0,85525.0,0.00142417]
[1744491152983,0.0969,85526.0,85525.0,0.01699472]
[1744491153286,0.0969,85526.0,85525.0,0.00142417]
[1744491153899,0.0969,85526.0,85525.0,0.00107473]
[1744491155040,0.0508,85526.0,85525.0,0.00107473]
[1744491155239,0.005,85526.0,85525.0,0.01667567]
[1744491156611,0.005,85526.0,85525.0,0.00107473]
[1744491159258,0.0538,85526.0,85525.0,0.00107473]
[1744491159502,0.17464154,85526.0,85525.0,0.00107473]
[1744491159639,0.22034154,85526.0,85525.0,0.00107473]
[1744491160452,0.0995,85526.0,85525.0,0.00107473]
[1744491160705,0.333347,85526.0,85525.0,0.00107473]
[1744491160910,0.333347,85526.0,85525.0,0.01665758]
[1744491161067,0.333347,85526.0,85525.0,0.00107473]
[1744491164198,0.0507,85526.0,85525.0,0.00107473]
[1744491164397,0.0507,85526.0,85525.0,0.01666662]
[1744491171667,0.0507,85526.0,85525.0,0.00107473]
[1744491172326,0.0507,85526.0,85525.0,0.0166518]
[1744491172549,0.0507,85526.0,85525.0,0.00107473]
[1744491172777,0.0507,85526.0,85525.0,0.01665484]
[1744491173050,0.0507,85526.0,85525.0,0.00107473]
[1744491173237,0.0507,85526.0,85525.0,0.01665787]
[1744491173460,0.0507,85526.0,85525.0,0.00107473]
[1744491173856,0.0507,85526.0,85525.0,0.01665787]
[1744491174223,0.0507,85526.0,85525.0,0.00107473]
[1744491174844,0.19918,85526.0,85525.0,0.00107473]
[1744491176068,0.36872154,85526.0,85525.0,0.00107473]
[1744491184434,0.17154154,85526.0,85525.0,0.00107473]
[1744491184602,0.32002154,85526.0,85525.0,0.00107473]
[1744491185425,0.15348,85526.0,85525.0,0.00107473]
[1744491187573,0.27432154,85526.0,85525.0,0.00107473]
[1744491191195,0.37132154,85526.0,85525.0,0.00107473]
[1744491193739,0.71132154,85526.0,85525.0,0.00107473]
[1744491194372,2.35344254,85526.0,85525.0,0.00107473]
[1744491194519,1.27586454,85526.0,85525.0,0.00107473]
[1744491194724,0.71132154,85526.0,85525.0,0.00107473]
[1744491195389,0.54258,85526.0,85525.0,0.00107473]
[1744491195672,0.49348,85526.0,85525.0,0.00107473]
[1744491198409,0.15348,85526.0,85525.0,0.00107473]
[1744491198599,0.005,85526.0,85525.0,0.00107473]
[1744491198793,0.15344,85526.0,85525.0,0.00107473]
[1744491204021,0.005,85526.0,85525.0,0.00107473]
[1744491204258,0.15344,85526.0,85525.0,0.00107473]
[1744491220709,0.32388154,85526.0,85525.0,0.00107473]
[1744491220887,0.71178154,85526.0,85525.0,0.00107473]
[1744491230269,0.72632239,85526.0,85525.0,7.3e-07]
[1744491230465,0.667563,85520.0,85519.0,9e-07]
[1744491230665,0.78840454,85520.0,85519.0,9e-07]
[1744491230992,0.59676454,85520.0,85519.0,9e-07]
[1744491231196,0.93676454,85520.0,85519.0,9e-07]
[1744491231687,0.94776454,85520.0,85519.0,0.0010009]
[1744491231994,1.06849302,85520.0,85519.0,9e-07]
[1744491232136,0.94776454,85520.0,85519.0,9e-07]
[1744491232343,0.95476454,85520.0,85519.0,0.0010009]
[1744491232547,0.95676454,85520.0,85519.0,0.0010009]
[1744491232747,0.96555184,85520.0,85519.0,0.0010009]
[1744491232960,0.96355184,85520.0,85519.0,0.0010009]
[1744491233420,0.96755184,85520.0,85519.0,0.0010009]
[1744491234107,0.94955184,85520.0,85519.0,9e-07]
[1744491234345,0.94955184,85520.0,85492.0,0.233938]
[1744491234346,0.23394,85492.0,85490.0,0.0008462]
[1744491234563,0.84314154,85492.0,85491.0,0.00126985]
[1744491235691,0.85604722,85492.0,85491.0,0.00226985]
[1744491235890,1.28345222,85492.0,85491.0,0.00226985]
[1744491236091,0.40444085,85491.0,85490.0,5e-08]
[1744491236412,0.40444085,85491.0,85490.0,0.000422]
[1744491236413,1.30018339,85491.0,85490.0,0.000422]
[1744491236614,1.30018339,85491.0,85490.0,0.00032315]
[1744491237281,1.30018339,85491.0,85490.0,1.5e-07]
[1744491237461,0.53728239,85491.0,85490.0,1.5e-07]
[1744491238080,0.65801087,85491.0,85490.0,1.5e-07]
[1744491238284,0.53728239,85491.0,85490.0,1.5e-07]
[1744491238646,0.01454085,85485.0,85483.0,0.00074758]
[1744491238845,0.46084154,85484.0,85483.0,0.00121181]
[1744491239250,0.60924154,85484.0,85483.0,0.00121181]
[1744491240160,0.61324154,85484.0,85483.0,0.00121181]
[1744491241410,0.62324154,85484.0,85483.0,0.00121181]
[1744491242634,0.354,85484.0,85483.0,0.00121181]
[1744491242837,0.1624,85484.0,85483.0,0.00121181]
[1744491243043,0.1624,85484.0,85483.0,0.01339923]
[1744491244067,0.1524,85484.0,85483.0,0.01339923]
[1744491244547,0.1544,85484.0,85483.0,0.00121181]
[1744491245564,0.1504,85484.0,85483.0,0.00121181]
[1744491245920,0.1504,85484.0,85483.0,0.00221181]
[1744491246698,0.27124154,85484.0,85483.0,0.00221181]
[1744491251534,0.36854154,85484.0,85483.0,0.00221181]
[1744491251741,0.70854154,85484.0,85483.0,0.00221181]
[1744491252605,0.70854154,85484.0,85483.0,0.00121181]
[1744491253059,0.71254154,85484.0,85483.0,0.00121181]
[1744491253463,0.71054154,85484.0,85483.0,0.00121181]
[1744491253734,0.71954154,85484.0,85483.0,0.00121181]
[1744491255225,1.92378154,85484.0,85483.0,0.00121181]
[1744491259795,1.93832239,85484.0,85483.0,0.00121181]
[1744491260767,1.92378154,85484.0,85483.0,0.00121181]
[1744491261398,1.92370154,85484.0,85483.0,0.00121181]
[1744491261782,1.77538154,85484.0,85483.0,0.00121181]
[1744491261990,1.92370154,85484.0,85483.0,0.00121181]
[1744491262195,1.93824239,85484.0,85483.0,0.00121181]
[1744491262784,0.35454085,85480.0,85478.0,2.1e-07]
[1744491262984,2.81089739,85479.0,85478.0,2.1e-07]
[1744491263218,0.80465739,85479.0,85478.0,2.1e-07]
[1744491263431,0.92538587,85479.0,85478.0,2.1e-07]
[1744491264086,0.96209785,85479.0,85478.0,2.1e-07]
[1744491264293,1.01124458,85479.0,85478.0,2.1e-07]
[1744491264726,0.63762985,85474.0,85473.0,0.00064941]
[1744491264952,2.0021001,85474.0,85473.0,0.00064941]
[1744491265391,2.12282858,85474.0,85473.0,0.00064941]
[1744491265611,2.16902858,85474.0,85473.0,0.00064941]
[1744491265831,0.34,85473.0,85472.0,4.1e-07]